[Event "Titled Tuesday Blitz April 26 Early 2022"]
[White "Alekseenko, Kirill"]
[Black "Martinez Alcantara, Jose Eduardo"]
[WhiteFideId "4135539"]
[BlackFideId "3805662"]
[WhiteElo "2682"]
[BlackElo "2690"]
[Result "0-1"]
[Round "10"]
[TimeControl "180+1"]
[Date "2022.04.26"]
[WhiteClock "0:00:07"]
[BlackClock "0:00:05"]

1. e4 {[%clk 0:03:00]}  c5 {[%clk 0:03:00]} 2. Nf3 {[%clk 0:03:01]}  d6 {[%clk 0:03:00]} 3. d4 {[%clk 0:03:01]}  cxd4 {[%clk 0:03:01]} 4. Nxd4 {[%clk 0:03:02]}  Nf6 {[%clk 0:03:02]} 5. Nc3 {[%clk 0:03:02]}  Nc6 {[%clk 0:03:03]} 6. Bg5 {[%clk 0:02:56]}  e6 {[%clk 0:03:03]} 7. Qd2 {[%clk 0:02:55]}  a6 {[%clk 0:03:03]} 8. O-O-O {[%clk 0:02:54]}  Bd7 {[%clk 0:03:03]} 9. f3 {[%clk 0:02:52]}  Nxd4 {[%clk 0:02:52]} 10. Qxd4 {[%clk 0:02:52]}  Bc6 {[%clk 0:02:51]} 11. Kb1 {[%clk 0:02:49]}  h6 {[%clk 0:02:50]} 12. Be3 {[%clk 0:02:45]}  d5 {[%clk 0:02:46]} 13. exd5 {[%clk 0:02:37]}  Nxd5 {[%clk 0:02:42]} 14. Nxd5 {[%clk 0:02:36]}  Qxd5 {[%clk 0:02:42]} 15. Qxd5 {[%clk 0:02:18]}  Bxd5 {[%clk 0:02:41]} 16. c4 {[%clk 0:02:17]}  Bc6 {[%clk 0:02:41]} 17. Bb6 {[%clk 0:02:18]}  Be7 {[%clk 0:02:33]} 18. Bd3 {[%clk 0:02:16]}  Bd8 {[%clk 0:02:20]} 19. Bxd8 {[%clk 0:02:09]}  Rxd8 {[%clk 0:02:21]} 20. Kc2 {[%clk 0:02:09]}  Ke7 {[%clk 0:02:17]} 21. Kc3 {[%clk 0:02:10]}  g5 {[%clk 0:02:16]} 22. b4 {[%clk 0:01:59]}  h5 {[%clk 0:02:12]} 23. Rhg1 {[%clk 0:01:37]}  f5 {[%clk 0:02:08]} 24. Bc2 {[%clk 0:01:38]}  g4 {[%clk 0:02:05]} 25. f4 {[%clk 0:01:35]}  Rxd1 {[%clk 0:02:04]} 26. Bxd1 {[%clk 0:01:36]}  h4 {[%clk 0:01:43]} 27. g3 {[%clk 0:01:23]}  b5 {[%clk 0:01:28]} 28. cxb5 {[%clk 0:01:12]}  axb5 {[%clk 0:01:29]} 29. Bb3 {[%clk 0:01:08]}  Be4 {[%clk 0:01:10]} 30. a4 {[%clk 0:00:59]}  Rc8+ {[%clk 0:00:55]} 31. Kb2 {[%clk 0:00:59]}  bxa4 {[%clk 0:00:48]} 32. Bxa4 {[%clk 0:01:00]}  Rc4 {[%clk 0:00:45]} 33. Ka3 {[%clk 0:00:47]}  Rc3+ {[%clk 0:00:46]} 34. Kb2 {[%clk 0:00:47]}  Rf3 {[%clk 0:00:46]} 35. b5 {[%clk 0:00:37]}  Rf2+ {[%clk 0:00:47]} 36. Kc3 {[%clk 0:00:37]}  Rxh2 {[%clk 0:00:46]} 37. gxh4 {[%clk 0:00:38]}  Rxh4 {[%clk 0:00:40]} 38. b6 {[%clk 0:00:38]}  Kd6 {[%clk 0:00:26]} 39. Kd4 {[%clk 0:00:35]}  Rh3 {[%clk 0:00:21]} 40. Rd1 {[%clk 0:00:32]}  Bd5 {[%clk 0:00:16]} 41. Rb1 {[%clk 0:00:25]}  Rf3 {[%clk 0:00:16]} 42. Bc2 {[%clk 0:00:20]}  Rxf4+ {[%clk 0:00:16]} 43. Ke3 {[%clk 0:00:21]}  Rf3+ {[%clk 0:00:17]} 44. Ke2 {[%clk 0:00:21]}  Bb7 {[%clk 0:00:12]} 45. Rd1+ {[%clk 0:00:18]}  Kc5 {[%clk 0:00:12]} 46. Rb1 {[%clk 0:00:12]}  Rh3 {[%clk 0:00:11]} 47. Bd3 {[%clk 0:00:12]}  f4 {[%clk 0:00:07]} 48. Rb5+ {[%clk 0:00:12]}  Kd6 {[%clk 0:00:05]} 49. Rg5 {[%clk 0:00:12]}  Rh2+ {[%clk 0:00:06]} 50. Ke1 {[%clk 0:00:11]}  g3 {[%clk 0:00:06]} 51. Rg7 {[%clk 0:00:09]}  Bd5 {[%clk 0:00:05]} 52. b7 {[%clk 0:00:09]}  Rb2 {[%clk 0:00:06]} 53. Rf7 {[%clk 0:00:06]}  g2 {[%clk 0:00:06]} 54. Rg7 {[%clk 0:00:07]}  f3 {[%clk 0:00:06]} 55. Kd1 {[%clk 0:00:07]}  Rxb7 {[%clk 0:00:05]} 0-1


[Site "https://www.chess.com"]

[Event "Titled Tuesday Blitz April 26 Early 2022"]
[White "Andreikin, Dmitry"]
[Black "Gokerkan, Cem Kaan"]
[WhiteFideId "4158814"]
[BlackFideId "6336760"]
[WhiteElo "2736"]
[BlackElo "2382"]
[Result "1-0"]
[Round "10"]
[TimeControl "180+1"]
[Date "2022.04.26"]
[WhiteClock "0:00:39"]
[BlackClock "0:00:03"]

1. d4 {[%clk 0:03:00]}  Nf6 {[%clk 0:02:56]} 2. c3 {[%clk 0:03:00]}  d5 {[%clk 0:02:55]} 3. Bf4 {[%clk 0:03:00]}  c5 {[%clk 0:02:44]} 4. e3 {[%clk 0:03:00]}  Nc6 {[%clk 0:02:42]} 5. Nd2 {[%clk 0:02:59]}  Bf5 {[%clk 0:02:35]} 6. Ngf3 {[%clk 0:02:58]}  e6 {[%clk 0:02:34]} 7. Bb5 {[%clk 0:02:58]}  Qc8 {[%clk 0:02:35]} 8. Ne5 {[%clk 0:02:54]}  Nd7 {[%clk 0:02:21]} 9. Ndf3 {[%clk 0:02:53]}  Ndxe5 {[%clk 0:02:09]} 10. Nxe5 {[%clk 0:02:52]}  f6 {[%clk 0:02:05]} 11. Nxc6 {[%clk 0:02:47]}  bxc6 {[%clk 0:02:05]} 12. Ba4 {[%clk 0:02:44]}  Be7 {[%clk 0:01:59]} 13. O-O {[%clk 0:02:43]}  O-O {[%clk 0:01:59]} 14. Rc1 {[%clk 0:02:44]}  Qb7 {[%clk 0:01:57]} 15. c4 {[%clk 0:02:43]}  cxd4 {[%clk 0:01:50]} 16. cxd5 {[%clk 0:02:43]}  cxd5 {[%clk 0:01:31]} 17. Rc7 {[%clk 0:02:43]}  Qxb2 {[%clk 0:01:18]} 18. Rxe7 {[%clk 0:02:42]}  dxe3 {[%clk 0:01:16]} 19. Bxe3 {[%clk 0:02:39]}  Qxa2 {[%clk 0:01:16]} 20. Qd4 {[%clk 0:02:33]}  Qc4 {[%clk 0:01:10]} 21. Qxc4 {[%clk 0:02:31]}  dxc4 {[%clk 0:01:11]} 22. Rc1 {[%clk 0:02:32]}  Rfc8 {[%clk 0:01:09]} 23. Bd7 {[%clk 0:02:30]}  Rd8 {[%clk 0:01:06]} 24. Rxc4 {[%clk 0:02:25]}  e5 {[%clk 0:00:57]} 25. Ba4 {[%clk 0:02:15]}  Rac8 {[%clk 0:00:41]} 26. Rxc8 {[%clk 0:02:10]}  Rxc8 {[%clk 0:00:41]} 27. Rxa7 {[%clk 0:02:07]}  Be6 {[%clk 0:00:38]} 28. h3 {[%clk 0:02:01]}  Bf7 {[%clk 0:00:38]} 29. g4 {[%clk 0:01:58]}  h6 {[%clk 0:00:38]} 30. Kh2 {[%clk 0:01:58]}  Rb8 {[%clk 0:00:37]} 31. Kg3 {[%clk 0:01:59]}  Rc8 {[%clk 0:00:36]} 32. h4 {[%clk 0:01:59]}  Rc3 {[%clk 0:00:35]} 33. Ra8+ {[%clk 0:01:58]}  Kh7 {[%clk 0:00:35]} 34. Bd7 {[%clk 0:01:57]}  Bg6 {[%clk 0:00:32]} 35. h5 {[%clk 0:01:56]}  Be4 {[%clk 0:00:32]} 36. Be6 {[%clk 0:01:55]}  Bxa8 {[%clk 0:00:32]} 37. Bf5+ {[%clk 0:01:53]}  Kg8 {[%clk 0:00:32]} 38. Be6+ {[%clk 0:01:53]}  Kh8 {[%clk 0:00:31]} 39. Bf5 {[%clk 0:01:41]}  Bd5 {[%clk 0:00:30]} 40. Bd7 {[%clk 0:01:41]}  Rb3 {[%clk 0:00:26]} 41. Bf5 {[%clk 0:01:38]}  Ra3 {[%clk 0:00:24]} 42. Bd7 {[%clk 0:01:38]}  Ra6 {[%clk 0:00:24]} 43. Bf5 {[%clk 0:01:38]}  Be6 {[%clk 0:00:24]} 44. Bd3 {[%clk 0:01:33]}  Ra3 {[%clk 0:00:23]} 45. Be2 {[%clk 0:01:24]}  Ra2 {[%clk 0:00:21]} 46. Bd3 {[%clk 0:01:24]}  Ra1 {[%clk 0:00:21]} 47. Be2 {[%clk 0:01:19]}  Kg8 {[%clk 0:00:21]} 48. Bf3 {[%clk 0:01:14]}  Kf7 {[%clk 0:00:20]} 49. Be2 {[%clk 0:01:14]}  Ke7 {[%clk 0:00:20]} 50. Bc5+ {[%clk 0:01:10]}  Kd7 {[%clk 0:00:20]} 51. Bf8 {[%clk 0:01:09]}  Ra2 {[%clk 0:00:13]} 52. Bb5+ {[%clk 0:00:55]}  Kd8 {[%clk 0:00:11]} 53. Bxg7 {[%clk 0:00:50]}  Ke7 {[%clk 0:00:11]} 54. Bxh6 {[%clk 0:00:48]}  Ra3+ {[%clk 0:00:10]} 55. Be3 {[%clk 0:00:48]}  Bg8 {[%clk 0:00:09]} 56. Kh4 {[%clk 0:00:46]}  Rb3 {[%clk 0:00:07]} 57. Bc5+ {[%clk 0:00:45]}  Kd8 {[%clk 0:00:07]} 58. Be2 {[%clk 0:00:45]}  Rb2 {[%clk 0:00:06]} 59. Bf3 {[%clk 0:00:45]}  Rc2 {[%clk 0:00:06]} 60. Be3 {[%clk 0:00:44]}  Bh7 {[%clk 0:00:06]} 61. Bd5 {[%clk 0:00:44]}  Ke7 {[%clk 0:00:06]} 62. g5 {[%clk 0:00:42]}  fxg5+ {[%clk 0:00:06]} 63. Kxg5 {[%clk 0:00:43]}  Rb2 {[%clk 0:00:03]} 64. Bc5+ {[%clk 0:00:43]}  Kd7 {[%clk 0:00:02]} 65. Kf6 {[%clk 0:00:43]}  Rb5 {[%clk 0:00:02]} 66. Be6+ {[%clk 0:00:42]}  Kc6 {[%clk 0:00:03]} 67. Bf8 {[%clk 0:00:41]}  e4 {[%clk 0:00:02]} 68. h6 {[%clk 0:00:40]}  Rh5 {[%clk 0:00:02]} 69. Kg7 {[%clk 0:00:40]}  Bf5 {[%clk 0:00:02]} 70. Bxf5 {[%clk 0:00:39]}  Rxf5 {[%clk 0:00:03]} 71. h7 {[%clk 0:00:40]}  Rg5+ {[%clk 0:00:03]} 72. Kh6 {[%clk 0:00:39]}  Rg2 {[%clk 0:00:03]} 73. h8=Q {[%clk 0:00:39]} 1-0


[Site "https://www.chess.com"]

[Event "Titled Tuesday Blitz April 26 Early 2022"]
[White "Barria Zuniga, Daniel"]
[Black "Molina, Roberto Junio Brito"]
[WhiteFideId "3400816"]
[BlackFideId "2109450"]
[WhiteElo "2414"]
[BlackElo "2432"]
[Result "0-1"]
[Round "10"]
[TimeControl "180+1"]
[Date "2022.04.26"]
[WhiteClock "0:00:04"]
[BlackClock "0:01:00"]

1. c4 {[%clk 0:02:58]}  c6 {[%clk 0:02:59]} 2. g3 {[%clk 0:02:56]}  d5 {[%clk 0:03:00]} 3. Bg2 {[%clk 0:02:57]}  dxc4 {[%clk 0:03:00]} 4. Nf3 {[%clk 0:02:56]}  b5 {[%clk 0:03:01]} 5. O-O {[%clk 0:02:57]}  Bb7 {[%clk 0:03:01]} 6. a4 {[%clk 0:02:52]}  a6 {[%clk 0:03:01]} 7. d3 {[%clk 0:02:51]}  cxd3 {[%clk 0:03:01]} 8. Ne5 {[%clk 0:02:50]}  Nd7 {[%clk 0:02:59]} 9. Nxc6 {[%clk 0:02:32]}  Qb6 {[%clk 0:02:51]} 10. Be3 {[%clk 0:02:31]}  Qc7 {[%clk 0:02:48]} 11. Bf4 {[%clk 0:02:28]}  e5 {[%clk 0:02:47]} 12. Nxe5 {[%clk 0:02:21]}  Bxg2 {[%clk 0:02:43]} 13. Nxd7 {[%clk 0:02:15]}  Qxd7 {[%clk 0:02:39]} 14. Kxg2 {[%clk 0:02:13]}  Nf6 {[%clk 0:02:25]} 15. Qxd3 {[%clk 0:02:10]}  Qxd3 {[%clk 0:02:10]} 16. exd3 {[%clk 0:02:11]}  b4 {[%clk 0:02:09]} 17. Nd2 {[%clk 0:02:00]}  Kd7 {[%clk 0:02:07]} 18. Nc4 {[%clk 0:01:59]}  Nd5 {[%clk 0:02:07]} 19. Bd2 {[%clk 0:01:53]}  f6 {[%clk 0:02:06]} 20. Rfe1 {[%clk 0:01:53]}  Bc5 {[%clk 0:02:04]} 21. Re4 {[%clk 0:01:52]}  Rhc8 {[%clk 0:02:00]} 22. Rae1 {[%clk 0:01:50]}  a5 {[%clk 0:01:59]} 23. h4 {[%clk 0:01:48]}  Bf8 {[%clk 0:01:56]} 24. h5 {[%clk 0:01:46]}  h6 {[%clk 0:01:56]} 25. Kf3 {[%clk 0:01:35]}  Bc5 {[%clk 0:01:53]} 26. R1e2 {[%clk 0:01:31]}  Ra6 {[%clk 0:01:52]} 27. Kg4 {[%clk 0:01:29]}  f5+ {[%clk 0:01:44]} 28. Kxf5 {[%clk 0:01:26]}  Rf8+ {[%clk 0:01:44]} 29. Kg4 {[%clk 0:01:18]}  Nf6+ {[%clk 0:01:44]} 30. Kh3 {[%clk 0:01:18]}  Nxe4 {[%clk 0:01:44]} 31. dxe4 {[%clk 0:01:10]}  Rxf2 {[%clk 0:01:39]} 32. Rxf2 {[%clk 0:00:54]}  Bxf2 {[%clk 0:01:40]} 33. Kg2 {[%clk 0:00:52]}  Bd4 {[%clk 0:01:39]} 34. b3 {[%clk 0:00:51]}  Bf6 {[%clk 0:01:32]} 35. Kf3 {[%clk 0:00:49]}  Bd8 {[%clk 0:01:30]} 36. Be3 {[%clk 0:00:46]}  Bc7 {[%clk 0:01:25]} 37. Bd4 {[%clk 0:00:44]}  g6 {[%clk 0:01:23]} 38. g4 {[%clk 0:00:43]}  gxh5 {[%clk 0:01:22]} 39. gxh5 {[%clk 0:00:44]}  Ra8 {[%clk 0:01:18]} 40. Bg7 {[%clk 0:00:19]}  Rg8 {[%clk 0:01:17]} 41. Bxh6 {[%clk 0:00:18]}  Rg3+ {[%clk 0:01:15]} 42. Kf2 {[%clk 0:00:12]}  Rxb3 {[%clk 0:01:16]} 43. Bg7 {[%clk 0:00:09]}  Ke6 {[%clk 0:01:08]} 44. h6 {[%clk 0:00:09]}  Kf7 {[%clk 0:01:08]} 45. e5 {[%clk 0:00:09]}  Rh3 {[%clk 0:01:05]} 46. Nd6+ {[%clk 0:00:04]}  Ke6 {[%clk 0:01:00]} 0-1


[Site "https://www.chess.com"]

[Event "Titled Tuesday Blitz April 26 Early 2022"]
[White "Bas Mas, Jose Joaquin"]
[Black "Vovk, Orest"]
[WhiteFideId "22219064"]
[BlackFideId "14113490"]
[WhiteElo "2212"]
[BlackElo "2203"]
[Result "0-1"]
[Round "10"]
[TimeControl "180+1"]
[Date "2022.04.26"]
[WhiteClock "0:00:09"]
[BlackClock "0:00:43"]

1. e4 {[%clk 0:03:00]}  d6 {[%clk 0:02:55]} 2. Nc3 {[%clk 0:02:59]}  Nd7 {[%clk 0:02:55]} 3. d4 {[%clk 0:02:59]}  e5 {[%clk 0:02:56]} 4. Bc4 {[%clk 0:02:58]}  Ngf6 {[%clk 0:02:27]} 5. Nf3 {[%clk 0:02:55]}  exd4 {[%clk 0:02:26]} 6. Qxd4 {[%clk 0:02:55]}  Be7 {[%clk 0:02:26]} 7. Bg5 {[%clk 0:02:51]}  O-O {[%clk 0:02:25]} 8. O-O-O {[%clk 0:02:51]}  Nc5 {[%clk 0:02:24]} 9. Rhe1 {[%clk 0:02:46]}  h6 {[%clk 0:02:23]} 10. Bh4 {[%clk 0:02:42]}  Ng4 {[%clk 0:02:23]} 11. Bxe7 {[%clk 0:02:37]}  Qxe7 {[%clk 0:02:24]} 12. e5 {[%clk 0:02:32]}  Nxe5 {[%clk 0:02:17]} 13. Nxe5 {[%clk 0:02:23]}  dxe5 {[%clk 0:02:18]} 14. Rxe5 {[%clk 0:02:11]}  Ne6 {[%clk 0:02:13]} 15. Qe3 {[%clk 0:02:10]}  c6 {[%clk 0:02:08]} 16. f4 {[%clk 0:02:08]}  Qb4 {[%clk 0:02:03]} 17. Bb3 {[%clk 0:02:01]}  Qb6 {[%clk 0:01:44]} 18. Qxb6 {[%clk 0:01:48]}  axb6 {[%clk 0:01:42]} 19. f5 {[%clk 0:01:42]}  Nc5 {[%clk 0:01:42]} 20. f6 {[%clk 0:01:30]}  Ra5 {[%clk 0:01:38]} 21. Re7 {[%clk 0:01:24]}  gxf6 {[%clk 0:01:35]} 22. Rf1 {[%clk 0:01:18]}  Kg7 {[%clk 0:01:35]} 23. Re3 {[%clk 0:01:08]}  Nxb3+ {[%clk 0:01:34]} 24. cxb3 {[%clk 0:01:06]}  Rg5 {[%clk 0:01:34]} 25. g3 {[%clk 0:01:00]}  f5 {[%clk 0:01:29]} 26. h4 {[%clk 0:00:58]}  Rg4 {[%clk 0:01:28]} 27. Ne2 {[%clk 0:00:54]}  Re4 {[%clk 0:01:24]} 28. Rff3 {[%clk 0:00:44]}  Rfe8 {[%clk 0:01:22]} 29. Rxe4 {[%clk 0:00:41]}  fxe4 {[%clk 0:01:22]} 30. Re3 {[%clk 0:00:40]}  Bg4 {[%clk 0:01:18]} 31. Nf4 {[%clk 0:00:39]}  f5 {[%clk 0:01:17]} 32. Kc2 {[%clk 0:00:38]}  Kf6 {[%clk 0:01:16]} 33. b4 {[%clk 0:00:37]}  Rd8 {[%clk 0:01:15]} 34. Re1 {[%clk 0:00:32]}  Rd6 {[%clk 0:01:12]} 35. Kc3 {[%clk 0:00:32]}  b5 {[%clk 0:01:12]} 36. a3 {[%clk 0:00:32]}  Ke5 {[%clk 0:01:11]} 37. Kc2 {[%clk 0:00:27]}  Bf3 {[%clk 0:01:07]} 38. Kc3 {[%clk 0:00:25]}  Rd8 {[%clk 0:01:05]} 39. Kc2 {[%clk 0:00:25]}  Rg8 {[%clk 0:01:03]} 40. Rg1 {[%clk 0:00:23]}  Kd4 {[%clk 0:00:58]} 41. Ne6+ {[%clk 0:00:22]}  Ke3 {[%clk 0:00:57]} 42. Nc5 {[%clk 0:00:20]}  Kf2 {[%clk 0:00:55]} 43. Rc1 {[%clk 0:00:20]}  Rxg3 {[%clk 0:00:47]} 44. Nxb7 {[%clk 0:00:20]}  e3 {[%clk 0:00:47]} 45. Nd6 {[%clk 0:00:16]}  Be4+ {[%clk 0:00:47]} 46. Kc3 {[%clk 0:00:08]}  e2+ {[%clk 0:00:46]} 47. Kd4 {[%clk 0:00:09]}  Rd3+ {[%clk 0:00:44]} 48. Ke5 {[%clk 0:00:09]}  Rxd6 {[%clk 0:00:43]} 0-1


[Site "https://www.chess.com"]

[Event "Titled Tuesday Blitz April 26 Early 2022"]
[White "Buscar, Michael"]
[Black "Steil-Antoni, Fiona"]
[WhiteFideId "2603616"]
[BlackFideId "4001249"]
[WhiteElo "2010"]
[BlackElo "2059"]
[Result "1-0"]
[Round "10"]
[TimeControl "180+1"]
[Date "2022.04.26"]
[WhiteClock "0:01:08"]
[BlackClock "0:00:22"]

1. Nf3 {[%clk 0:02:58]}  d6 {[%clk 0:02:58]} 2. b3 {[%clk 0:02:58]}  e5 {[%clk 0:02:58]} 3. Bb2 {[%clk 0:02:58]}  Bg4 {[%clk 0:02:57]} 4. h3 {[%clk 0:02:51]}  Bxf3 {[%clk 0:02:55]} 5. exf3 {[%clk 0:02:51]}  f5 {[%clk 0:02:56]} 6. d4 {[%clk 0:02:49]}  Ne7 {[%clk 0:02:56]} 7. dxe5 {[%clk 0:02:49]}  Nbc6 {[%clk 0:02:48]} 8. exd6 {[%clk 0:02:48]}  cxd6 {[%clk 0:02:48]} 9. Bc4 {[%clk 0:02:46]}  d5 {[%clk 0:02:44]} 10. Bd3 {[%clk 0:02:43]}  Qd6 {[%clk 0:02:38]} 11. Nc3 {[%clk 0:02:34]}  O-O-O {[%clk 0:02:34]} 12. O-O {[%clk 0:02:33]}  Rg8 {[%clk 0:02:32]} 13. Nb5 {[%clk 0:02:33]}  Qf4 {[%clk 0:02:27]} 14. Re1 {[%clk 0:02:28]}  g5 {[%clk 0:02:22]} 15. Qe2 {[%clk 0:02:17]}  Rg6 {[%clk 0:02:16]} 16. Qe3 {[%clk 0:02:05]}  Qxe3 {[%clk 0:02:04]} 17. Rxe3 {[%clk 0:02:03]}  a6 {[%clk 0:02:05]} 18. Nd4 {[%clk 0:02:01]}  Nxd4 {[%clk 0:02:01]} 19. Bxd4 {[%clk 0:02:01]}  Nc6 {[%clk 0:02:01]} 20. Bxf5+ {[%clk 0:02:01]}  Kc7 {[%clk 0:01:52]} 21. Bxg6 {[%clk 0:01:58]}  Nxd4 {[%clk 0:01:52]} 22. Bxh7 {[%clk 0:01:56]}  Bc5 {[%clk 0:01:50]} 23. Rc3 {[%clk 0:01:55]}  Kd6 {[%clk 0:01:48]} 24. Rxc5 {[%clk 0:01:51]}  Kxc5 {[%clk 0:01:48]} 25. Re1 {[%clk 0:01:51]}  b5 {[%clk 0:01:36]} 26. Re5 {[%clk 0:01:45]}  Kb4 {[%clk 0:01:36]} 27. Rxg5 {[%clk 0:01:41]}  Kc3 {[%clk 0:01:33]} 28. Rg7 {[%clk 0:01:37]}  Ne2+ {[%clk 0:01:09]} 29. Kh2 {[%clk 0:01:32]}  Nc1 {[%clk 0:01:07]} 30. a4 {[%clk 0:01:27]}  bxa4 {[%clk 0:00:54]} 31. bxa4 {[%clk 0:01:28]}  a5 {[%clk 0:00:55]} 32. Rb7 {[%clk 0:01:24]}  Na2 {[%clk 0:00:42]} 33. Rb5 {[%clk 0:01:22]}  d4 {[%clk 0:00:42]} 34. Rxa5 {[%clk 0:01:21]}  Nb4 {[%clk 0:00:42]} 35. Rc5+ {[%clk 0:01:19]}  Kd2 {[%clk 0:00:42]} 36. a5 {[%clk 0:01:14]}  Rd6 {[%clk 0:00:42]} 37. Be4 {[%clk 0:01:14]}  Na2 {[%clk 0:00:32]} 38. h4 {[%clk 0:01:11]}  Nc3 {[%clk 0:00:32]} 39. Bd3 {[%clk 0:01:11]}  Ke1 {[%clk 0:00:28]} 40. Kg3 {[%clk 0:01:10]}  Ne2+ {[%clk 0:00:21]} 41. Bxe2 {[%clk 0:01:08]}  Kxe2 {[%clk 0:00:22]} 42. h5 {[%clk 0:01:08]} 1-0


[Site "https://www.chess.com"]

[Event "Titled Tuesday Blitz April 26 Early 2022"]
[White "Butti, Enrique"]
[Black "Zia, Tahsin Tajwar"]
[WhiteFideId "3700470"]
[BlackFideId "10211888"]
[WhiteElo "2080"]
[BlackElo "1800"]
[Result "0-1"]
[Round "10"]
[TimeControl "180+1"]
[Date "2022.04.26"]
[WhiteClock "0:01:57"]
[BlackClock "0:01:01"]

1. d4 {[%clk 0:02:58]}  g6 {[%clk 0:03:00]} 2. c4 {[%clk 0:02:57]}  Bg7 {[%clk 0:02:57]} 3. Nc3 {[%clk 0:02:56]}  c5 {[%clk 0:02:54]} 4. d5 {[%clk 0:02:48]}  d6 {[%clk 0:02:48]} 5. e4 {[%clk 0:02:46]}  Nf6 {[%clk 0:02:38]} 6. Bd3 {[%clk 0:02:45]}  O-O {[%clk 0:02:33]} 7. h3 {[%clk 0:02:41]}  Nbd7 {[%clk 0:02:23]} 8. Nge2 {[%clk 0:02:38]}  e6 {[%clk 0:02:18]} 9. f4 {[%clk 0:02:32]}  exd5 {[%clk 0:02:17]} 10. cxd5 {[%clk 0:02:31]}  Re8 {[%clk 0:02:12]} 11. O-O {[%clk 0:02:30]}  b5 {[%clk 0:02:04]} 12. Ng3 {[%clk 0:02:30]}  c4 {[%clk 0:01:52]} 13. Bc2 {[%clk 0:02:29]}  Nc5 {[%clk 0:01:43]} 14. a3 {[%clk 0:02:24]}  h5 {[%clk 0:01:33]} 15. Be3 {[%clk 0:02:02]}  h4 {[%clk 0:01:21]} 16. Bxc5 {[%clk 0:02:01]}  dxc5 {[%clk 0:01:17]} 17. Nge2 {[%clk 0:01:58]}  b4 {[%clk 0:01:10]} 18. Na4 {[%clk 0:01:57]}  Nxe4 {[%clk 0:01:01]} 0-1


[Site "https://www.chess.com"]

[Event "Titled Tuesday Blitz April 26 Early 2022"]
[White "Carrasco Miranda, Andres"]
[Black "Sailer, Mike"]
[WhiteFideId "3405990"]
[BlackFideId "2012901"]
[WhiteElo "2177"]
[BlackElo "2109"]
[Result "1-0"]
[Round "10"]
[TimeControl "180+1"]
[Date "2022.04.26"]
[WhiteClock "0:00:32"]
[BlackClock "0:00:06"]

1. d4 {[%clk 0:03:00]}  d5 {[%clk 0:02:59]} 2. c4 {[%clk 0:03:01]}  Bf5 {[%clk 0:02:59]} 3. cxd5 {[%clk 0:02:59]}  Bxb1 {[%clk 0:02:58]} 4. Qa4+ {[%clk 0:02:59]}  Qd7 {[%clk 0:02:59]} 5. Qxd7+ {[%clk 0:02:57]}  Nxd7 {[%clk 0:02:59]} 6. Rxb1 {[%clk 0:02:57]}  Ngf6 {[%clk 0:03:00]} 7. Nf3 {[%clk 0:02:54]}  Nb6 {[%clk 0:03:00]} 8. Bd2 {[%clk 0:02:51]}  Nbxd5 {[%clk 0:03:00]} 9. e3 {[%clk 0:02:51]}  e6 {[%clk 0:03:00]} 10. a3 {[%clk 0:02:51]}  Bd6 {[%clk 0:02:57]} 11. Bd3 {[%clk 0:02:49]}  Nb6 {[%clk 0:02:43]} 12. e4 {[%clk 0:02:46]}  Be7 {[%clk 0:02:43]} 13. O-O {[%clk 0:02:40]}  h6 {[%clk 0:02:44]} 14. h3 {[%clk 0:02:41]}  O-O-O {[%clk 0:02:41]} 15. Be3 {[%clk 0:02:40]}  Nbd7 {[%clk 0:02:34]} 16. Rfc1 {[%clk 0:02:39]}  Kb8 {[%clk 0:02:35]} 17. Bf1 {[%clk 0:02:36]}  g5 {[%clk 0:02:31]} 18. Nd2 {[%clk 0:02:29]}  Nh5 {[%clk 0:02:24]} 19. g3 {[%clk 0:02:25]}  f5 {[%clk 0:02:22]} 20. Bg2 {[%clk 0:02:23]}  f4 {[%clk 0:02:18]} 21. Nc4 {[%clk 0:02:16]}  fxe3 {[%clk 0:02:13]} 22. g4 {[%clk 0:02:16]}  exf2+ {[%clk 0:02:09]} 23. Kxf2 {[%clk 0:02:16]}  Rhf8+ {[%clk 0:02:07]} 24. Kg1 {[%clk 0:02:16]}  Nf4 {[%clk 0:02:07]} 25. Rc2 {[%clk 0:02:15]}  Nxg2 {[%clk 0:02:06]} 26. Kxg2 {[%clk 0:02:16]}  Rf4 {[%clk 0:01:57]} 27. Re1 {[%clk 0:02:15]}  Rdf8 {[%clk 0:01:56]} 28. b4 {[%clk 0:02:10]}  Rf3 {[%clk 0:01:40]} 29. Ne3 {[%clk 0:01:49]}  Nb6 {[%clk 0:01:21]} 30. Nf5 {[%clk 0:01:47]}  R3xf5 {[%clk 0:01:07]} 31. exf5 {[%clk 0:01:38]}  Nd5 {[%clk 0:00:58]} 32. fxe6 {[%clk 0:01:37]}  Bd6 {[%clk 0:00:52]} 33. Rf2 {[%clk 0:01:19]}  Nf4+ {[%clk 0:00:49]} 34. Kf1 {[%clk 0:01:19]}  Re8 {[%clk 0:00:47]} 35. Re3 {[%clk 0:01:06]}  c6 {[%clk 0:00:45]} 36. h4 {[%clk 0:01:04]}  gxh4 {[%clk 0:00:42]} 37. Re4 {[%clk 0:01:04]}  Nd3 {[%clk 0:00:25]} 38. Rf6 {[%clk 0:00:57]}  h3 {[%clk 0:00:16]} 39. Rxh6 {[%clk 0:00:57]}  h2 {[%clk 0:00:17]} 40. Ke2 {[%clk 0:00:54]}  Nf4+ {[%clk 0:00:16]} 41. Kf3 {[%clk 0:00:50]}  Nd5 {[%clk 0:00:15]} 42. g5 {[%clk 0:00:48]}  a6 {[%clk 0:00:12]} 43. g6 {[%clk 0:00:48]}  Rg8 {[%clk 0:00:11]} 44. Rg4 {[%clk 0:00:43]}  Ne7 {[%clk 0:00:11]} 45. Kg2 {[%clk 0:00:38]}  Kc7 {[%clk 0:00:10]} 46. Rh7 {[%clk 0:00:37]}  Kd8 {[%clk 0:00:08]} 47. Kh1 {[%clk 0:00:35]}  Nf5 {[%clk 0:00:08]} 48. Rxb7 {[%clk 0:00:32]}  Nxd4 {[%clk 0:00:05]} 49. Rd7+ {[%clk 0:00:31]}  Ke8 {[%clk 0:00:06]} 50. Rxd6 {[%clk 0:00:32]}  Nxe6 {[%clk 0:00:05]} 51. Rxe6+ {[%clk 0:00:32]}  Kd7 {[%clk 0:00:06]} 52. Rf6 {[%clk 0:00:32]}  Ke7 {[%clk 0:00:05]} 53. Rf7+ {[%clk 0:00:32]}  Ke6 {[%clk 0:00:06]} 54. Rh7 {[%clk 0:00:32]} 1-0


[Site "https://www.chess.com"]